[Event "Titled Tuesday Blitz May 31 Early 2022"]
[White "Molina, Roberto Junio Brito"]
[Black "Gallo Garcia, Kemel Antonio"]
[WhiteFideId "2109450"]
[BlackFideId "3523896"]
[WhiteElo "2432"]
[BlackElo "2359"]
[Result "1/2-1/2"]
[Round "06"]
[TimeControl "180+1"]
[Date "2022.05.31"]
[WhiteClock "0:00:45"]
[BlackClock "0:00:19"]

1. d4 {[%clk 0:03:00]}  Nf6 {[%clk 0:02:59]} 2. c4 {[%clk 0:03:01]}  g6 {[%clk 0:02:59]} 3. Nc3 {[%clk 0:03:01]}  d5 {[%clk 0:03:00]} 4. Nf3 {[%clk 0:03:01]}  Bg7 {[%clk 0:03:00]} 5. Qb3 {[%clk 0:03:00]}  dxc4 {[%clk 0:03:00]} 6. Qxc4 {[%clk 0:03:01]}  O-O {[%clk 0:03:01]} 7. e4 {[%clk 0:03:01]}  Nc6 {[%clk 0:03:01]} 8. Be2 {[%clk 0:02:52]}  e5 {[%clk 0:03:00]} 9. d5 {[%clk 0:02:51]}  Nd4 {[%clk 0:03:00]} 10. Nxd4 {[%clk 0:02:51]}  exd4 {[%clk 0:03:01]} 11. Qxd4 {[%clk 0:02:51]}  c6 {[%clk 0:02:59]} 12. Qd1 {[%clk 0:02:49]}  Re8 {[%clk 0:02:37]} 13. O-O {[%clk 0:02:40]}  Nxe4 {[%clk 0:02:08]} 14. Nxe4 {[%clk 0:02:40]}  Rxe4 {[%clk 0:02:09]} 15. dxc6 {[%clk 0:02:39]}  Rd4 {[%clk 0:02:09]} 16. cxb7 {[%clk 0:02:22]}  Bxb7 {[%clk 0:02:05]} 17. Qb3 {[%clk 0:02:20]}  Qe7 {[%clk 0:01:47]} 18. Be3 {[%clk 0:02:16]}  Rb4 {[%clk 0:01:46]} 19. Qd1 {[%clk 0:01:51]}  Rd8 {[%clk 0:01:41]} 20. Qe1 {[%clk 0:01:50]}  Rxb2 {[%clk 0:01:27]} 21. Rb1 {[%clk 0:01:47]}  Rxa2 {[%clk 0:00:51]} 22. Bc4 {[%clk 0:01:28]}  Rc2 {[%clk 0:00:27]} 23. Qb4 {[%clk 0:01:05]}  Qxb4 {[%clk 0:00:27]} 24. Rxb4 {[%clk 0:01:05]}  Rxc4 {[%clk 0:00:27]} 25. Rxc4 {[%clk 0:01:05]}  Ba6 {[%clk 0:00:27]} 26. Ra4 {[%clk 0:01:01]}  Bxf1 {[%clk 0:00:15]} 27. Kxf1 {[%clk 0:01:02]}  Rd1+ {[%clk 0:00:13]} 28. Ke2 {[%clk 0:01:02]}  Ra1 {[%clk 0:00:13]} 29. Rc4 {[%clk 0:00:41]}  h5 {[%clk 0:00:12]} 30. Rc8+ {[%clk 0:00:39]}  Kh7 {[%clk 0:00:12]} 31. Rc7 {[%clk 0:00:40]}  Kg8 {[%clk 0:00:11]} 32. Bxa7 {[%clk 0:00:38]}  Be5 {[%clk 0:00:10]} 33. Rc8+ {[%clk 0:00:37]}  Kg7 {[%clk 0:00:11]} 34. Be3 {[%clk 0:00:38]}  Bf6 {[%clk 0:00:11]} 35. h3 {[%clk 0:00:38]}  Ra2+ {[%clk 0:00:11]} 36. Kf3 {[%clk 0:00:38]}  Ra3 {[%clk 0:00:12]} 37. Rc4 {[%clk 0:00:37]}  Bg5 {[%clk 0:00:12]} 38. Re4 {[%clk 0:00:33]}  Bxe3 {[%clk 0:00:12]} 39. Rxe3 {[%clk 0:00:34]}  Rxe3+ {[%clk 0:00:13]} 40. Kxe3 {[%clk 0:00:35]}  Kf6 {[%clk 0:00:13]} 41. Kf4 {[%clk 0:00:34]}  g5+ {[%clk 0:00:14]} 42. Ke4 {[%clk 0:00:33]}  Ke6 {[%clk 0:00:13]} 43. g4 {[%clk 0:00:32]}  hxg4 {[%clk 0:00:10]} 44. hxg4 {[%clk 0:00:33]}  Kf6 {[%clk 0:00:10]} 45. Kd5 {[%clk 0:00:33]}  Kg6 {[%clk 0:00:08]} 46. Ke5 {[%clk 0:00:33]}  Kg7 {[%clk 0:00:08]} 47. Kf5 {[%clk 0:00:33]}  f6 {[%clk 0:00:09]} 48. Ke6 {[%clk 0:00:32]}  Kg6 {[%clk 0:00:09]} 49. Ke7 {[%clk 0:00:29]}  f5 {[%clk 0:00:09]} 50. f3 {[%clk 0:00:28]}  fxg4 {[%clk 0:00:09]} 51. fxg4 {[%clk 0:00:29]}  Kh6 {[%clk 0:00:08]} 52. Kf6 {[%clk 0:00:29]}  Kh7 {[%clk 0:00:09]} 53. Kf7 {[%clk 0:00:29]}  Kh6 {[%clk 0:00:09]} 54. Ke6 {[%clk 0:00:29]}  Kh7 {[%clk 0:00:10]} 55. Kf5 {[%clk 0:00:29]}  Kh6 {[%clk 0:00:11]} 56. Kf6 {[%clk 0:00:29]}  Kh7 {[%clk 0:00:11]} 57. Kxg5 {[%clk 0:00:29]}  Kg7 {[%clk 0:00:12]} 58. Kf5 {[%clk 0:00:30]}  Kf7 {[%clk 0:00:12]} 59. Ke4 {[%clk 0:00:31]}  Kg6 {[%clk 0:00:11]} 60. Ke3 {[%clk 0:00:31]}  Kg5 {[%clk 0:00:12]} 61. Kf3 {[%clk 0:00:32]}  Kg6 {[%clk 0:00:12]} 62. Kg3 {[%clk 0:00:32]}  Kg5 {[%clk 0:00:12]} 63. Kh3 {[%clk 0:00:32]}  Kg6 {[%clk 0:00:13]} 64. Kg2 {[%clk 0:00:33]}  Kg5 {[%clk 0:00:13]} 65. Kg3 {[%clk 0:00:34]}  Kg6 {[%clk 0:00:14]} 66. Kf4 {[%clk 0:00:35]}  Kf6 {[%clk 0:00:14]} 67. g5+ {[%clk 0:00:35]}  Kg6 {[%clk 0:00:15]} 68. Kg4 {[%clk 0:00:36]}  Kg7 {[%clk 0:00:15]} 69. Kf5 {[%clk 0:00:37]}  Kf7 {[%clk 0:00:16]} 70. g6+ {[%clk 0:00:38]}  Kg7 {[%clk 0:00:16]} 71. Kg5 {[%clk 0:00:38]}  Kg8 {[%clk 0:00:16]} 72. Kh4 {[%clk 0:00:39]}  Kg7 {[%clk 0:00:17]} 73. Kh5 {[%clk 0:00:40]}  Kg8 {[%clk 0:00:17]} 74. Kg4 {[%clk 0:00:41]}  Kg7 {[%clk 0:00:18]} 75. Kg5 {[%clk 0:00:42]}  Kg8 {[%clk 0:00:18]} 76. Kh6 {[%clk 0:00:43]}  Kh8 {[%clk 0:00:18]} 77. g7+ {[%clk 0:00:44]}  Kg8 {[%clk 0:00:19]} 78. Kg6 {[%clk 0:00:45]} 1/2-1/2


[Site "https://www.chess.com"]

[Event "Titled Tuesday Blitz May 31 Early 2022"]
[White "Namitbir Singh Walia"]
[Black "Maevsky, Nikolay"]
[WhiteFideId "35071068"]
[BlackFideId "4198220"]
[WhiteElo "1565"]
[BlackElo "2149"]
[Result "1/2-1/2"]
[Round "06"]
[TimeControl "180+1"]
[Date "2022.06.01"]
[WhiteClock "0:00:13"]
[BlackClock "0:00:11"]

1. d4 {[%clk 0:03:00]}  e5 {[%clk 0:02:59]} 2. c4 {[%clk 0:03:01]}  exd4 {[%clk 0:02:59]} 3. Nf3 {[%clk 0:02:59]}  Nc6 {[%clk 0:02:59]} 4. Nxd4 {[%clk 0:02:58]}  Bb4+ {[%clk 0:02:57]} 5. Nc3 {[%clk 0:02:56]}  Nge7 {[%clk 0:02:57]} 6. e4 {[%clk 0:02:52]}  O-O {[%clk 0:02:56]} 7. Be3 {[%clk 0:02:38]}  d6 {[%clk 0:02:55]} 8. Bd3 {[%clk 0:02:30]}  Ne5 {[%clk 0:02:54]} 9. O-O {[%clk 0:02:22]}  Bxc3 {[%clk 0:02:48]} 10. bxc3 {[%clk 0:02:22]}  f5 {[%clk 0:02:45]} 11. exf5 {[%clk 0:02:17]}  Nxf5 {[%clk 0:02:45]} 12. Nxf5 {[%clk 0:02:10]}  Bxf5 {[%clk 0:02:45]} 13. Bxf5 {[%clk 0:02:09]}  Rxf5 {[%clk 0:02:45]} 14. Qd5+ {[%clk 0:02:10]}  Rf7 {[%clk 0:02:41]} 15. Qxb7 {[%clk 0:02:07]}  Nxc4 {[%clk 0:02:38]} 16. Bg5 {[%clk 0:01:48]}  Qc8 {[%clk 0:02:28]} 17. Qd5 {[%clk 0:01:47]}  Nb6 {[%clk 0:02:27]} 18. Qb3 {[%clk 0:01:45]}  Qg4 {[%clk 0:02:23]} 19. Be3 {[%clk 0:01:41]}  Rf8 {[%clk 0:02:21]} 20. Rfd1 {[%clk 0:01:35]}  h6 {[%clk 0:02:15]} 21. Rd4 {[%clk 0:01:34]}  Qg6 {[%clk 0:02:09]} 22. Rf4 {[%clk 0:01:21]}  Kh7 {[%clk 0:02:07]} 23. Rxf7 {[%clk 0:01:21]}  Rxf7 {[%clk 0:02:06]} 24. Rd1 {[%clk 0:01:20]}  Re7 {[%clk 0:02:00]} 25. Qb1 {[%clk 0:01:11]}  Re4 {[%clk 0:01:28]} 26. h3 {[%clk 0:01:02]}  Ra4 {[%clk 0:01:20]} 27. Qb3 {[%clk 0:00:57]}  Qe4 {[%clk 0:01:08]} 28. Qf7 {[%clk 0:00:44]}  Nd5 {[%clk 0:00:57]} 29. Bd4 {[%clk 0:00:44]}  Rxd4 {[%clk 0:00:38]} 30. Rxd4 {[%clk 0:00:45]}  Qe1+ {[%clk 0:00:34]} 31. Kh2 {[%clk 0:00:44]}  Nxc3 {[%clk 0:00:20]} 32. Rg4 {[%clk 0:00:33]}  Qe5+ {[%clk 0:00:20]} 33. f4 {[%clk 0:00:34]}  Qf6 {[%clk 0:00:16]} 34. Qxc7 {[%clk 0:00:25]}  Ne4 {[%clk 0:00:14]} 35. Qxa7 {[%clk 0:00:20]}  d5 {[%clk 0:00:12]} 36. Qe3 {[%clk 0:00:18]}  h5 {[%clk 0:00:12]} 37. Rg5 {[%clk 0:00:15]}  Nxg5 {[%clk 0:00:11]} 38. fxg5 {[%clk 0:00:16]}  Qd6+ {[%clk 0:00:11]} 39. Qg3 {[%clk 0:00:14]}  Qa6 {[%clk 0:00:08]} 40. g6+ {[%clk 0:00:12]}  Kh6 {[%clk 0:00:08]} 41. h4 {[%clk 0:00:12]}  Qf6 {[%clk 0:00:08]} 42. a4 {[%clk 0:00:09]}  d4 {[%clk 0:00:09]} 43. a5 {[%clk 0:00:09]}  d3 {[%clk 0:00:09]} 44. Qxd3 {[%clk 0:00:09]}  Qe5+ {[%clk 0:00:09]} 45. Qg3 {[%clk 0:00:08]}  Qxa5 {[%clk 0:00:08]} 46. Qd6 {[%clk 0:00:06]}  Qf5 {[%clk 0:00:08]} 47. g3 {[%clk 0:00:06]}  Qxg6 {[%clk 0:00:07]} 48. Qxg6+ {[%clk 0:00:06]}  Kxg6 {[%clk 0:00:07]} 49. Kg2 {[%clk 0:00:07]}  Kf6 {[%clk 0:00:08]} 50. Kf3 {[%clk 0:00:08]}  Kf5 {[%clk 0:00:08]} 51. Kf2 {[%clk 0:00:09]}  Kg4 {[%clk 0:00:08]} 52. Kg2 {[%clk 0:00:09]}  g6 {[%clk 0:00:09]} 53. Kf2 {[%clk 0:00:10]}  g5 {[%clk 0:00:08]} 54. hxg5 {[%clk 0:00:09]}  Kxg5 {[%clk 0:00:09]} 55. Kf3 {[%clk 0:00:10]}  Kf5 {[%clk 0:00:09]} 56. Kf2 {[%clk 0:00:10]}  Kg4 {[%clk 0:00:10]} 57. Kg2 {[%clk 0:00:10]}  Kg5 {[%clk 0:00:10]} 58. Kf3 {[%clk 0:00:10]}  Kh6 {[%clk 0:00:10]} 59. Kf4 {[%clk 0:00:10]}  Kg6 {[%clk 0:00:10]} 60. Kf3 {[%clk 0:00:11]}  Kf5 {[%clk 0:00:10]} 61. Kf2 {[%clk 0:00:10]}  Ke4 {[%clk 0:00:10]} 62. Kg2 {[%clk 0:00:11]}  Kf5 {[%clk 0:00:11]} 63. Kh3 {[%clk 0:00:11]}  Kg5 {[%clk 0:00:11]} 64. Kh2 {[%clk 0:00:12]}  Kg4 {[%clk 0:00:11]} 65. Kg2 {[%clk 0:00:12]}  h4 {[%clk 0:00:12]} 66. gxh4 {[%clk 0:00:13]}  Kxh4 {[%clk 0:00:11]} 1/2-1/2


[Site "https://www.chess.com"]

[Event "Titled Tuesday Blitz May 31 Early 2022"]
[White "Paravyan, David"]
[Black "Macovei, Andrei"]
[WhiteFideId "4194985"]
[BlackFideId "13904680"]
[WhiteElo "2569"]
[BlackElo "2472"]
[Result "1/2-1/2"]
[Round "06"]
[TimeControl "180+1"]
[Date "2022.05.31"]
[WhiteClock "0:00:07"]
[BlackClock "0:00:05"]

1. e4 {[%clk 0:03:00]}  c6 {[%clk 0:02:58]} 2. d4 {[%clk 0:02:59]}  d5 {[%clk 0:02:59]} 3. e5 {[%clk 0:02:59]}  Bf5 {[%clk 0:02:59]} 4. Nf3 {[%clk 0:02:59]}  e6 {[%clk 0:03:00]} 5. Be2 {[%clk 0:02:56]}  Ne7 {[%clk 0:03:00]} 6. O-O {[%clk 0:02:56]}  c5 {[%clk 0:03:00]} 7. dxc5 {[%clk 0:02:56]}  Nec6 {[%clk 0:03:01]} 8. Bg5 {[%clk 0:02:57]}  Be7 {[%clk 0:02:56]} 9. Bxe7 {[%clk 0:02:57]}  Qxe7 {[%clk 0:02:57]} 10. c4 {[%clk 0:02:57]}  dxc4 {[%clk 0:02:52]} 11. Nbd2 {[%clk 0:02:57]}  O-O {[%clk 0:02:33]} 12. Nxc4 {[%clk 0:02:54]}  Nd7 {[%clk 0:02:21]} 13. Qd6 {[%clk 0:02:53]}  Nxc5 {[%clk 0:02:15]} 14. Qxe7 {[%clk 0:02:45]}  Nxe7 {[%clk 0:02:14]} 15. Nd6 {[%clk 0:02:45]}  Bd3 {[%clk 0:02:07]} 16. Bxd3 {[%clk 0:02:23]}  Nxd3 {[%clk 0:02:06]} 17. Rfd1 {[%clk 0:01:53]}  Nxb2 {[%clk 0:01:51]} 18. Rdb1 {[%clk 0:01:52]}  Nd3 {[%clk 0:01:49]} 19. Rxb7 {[%clk 0:01:51]}  Ng6 {[%clk 0:01:46]} 20. Rb5 {[%clk 0:01:22]}  a6 {[%clk 0:01:23]} 21. Ra5 {[%clk 0:01:20]}  Rfb8 {[%clk 0:01:22]} 22. Rd1 {[%clk 0:01:14]}  Rb2 {[%clk 0:01:07]} 23. Ne4 {[%clk 0:01:14]}  Ndf4 {[%clk 0:00:52]} 24. g3 {[%clk 0:01:07]}  Nd5 {[%clk 0:00:52]} 25. Rc1 {[%clk 0:00:56]}  h6 {[%clk 0:00:46]} 26. h4 {[%clk 0:00:55]}  Re2 {[%clk 0:00:45]} 27. Nc3 {[%clk 0:00:49]}  Nxc3 {[%clk 0:00:44]} 28. Rxc3 {[%clk 0:00:50]}  Rb8 {[%clk 0:00:45]} 29. h5 {[%clk 0:00:29]}  Ne7 {[%clk 0:00:39]} 30. Nd4 {[%clk 0:00:29]}  Re1+ {[%clk 0:00:38]} 31. Kg2 {[%clk 0:00:29]}  Nd5 {[%clk 0:00:38]} 32. Rb3 {[%clk 0:00:25]}  Rc8 {[%clk 0:00:35]} 33. Rxa6 {[%clk 0:00:24]}  Rxe5 {[%clk 0:00:34]} 34. Ra7 {[%clk 0:00:22]}  Re4 {[%clk 0:00:30]} 35. Nf3 {[%clk 0:00:18]}  Re2 {[%clk 0:00:20]} 36. Ng1 {[%clk 0:00:15]}  Rec2 {[%clk 0:00:17]} 37. Rbb7 {[%clk 0:00:13]}  R2c7 {[%clk 0:00:16]} 38. Rxc7 {[%clk 0:00:12]}  Nxc7 {[%clk 0:00:17]} 39. Nf3 {[%clk 0:00:10]}  Nb5 {[%clk 0:00:17]} 40. Rb7 {[%clk 0:00:08]}  Nc3 {[%clk 0:00:16]} 41. Ne5 {[%clk 0:00:08]}  f6 {[%clk 0:00:16]} 42. Ng6 {[%clk 0:00:08]}  Ra8 {[%clk 0:00:16]} 43. Nf4 {[%clk 0:00:06]}  Ra6 {[%clk 0:00:15]} 44. a3 {[%clk 0:00:05]}  e5 {[%clk 0:00:14]} 45. Ng6 {[%clk 0:00:06]}  Rxa3 {[%clk 0:00:12]} 46. Ne7+ {[%clk 0:00:04]}  Kf8 {[%clk 0:00:12]} 47. Nf5 {[%clk 0:00:05]}  Ne4 {[%clk 0:00:10]} 48. Rb8+ {[%clk 0:00:01]}  Kf7 {[%clk 0:00:10]} 49. Rb7+ {[%clk 0:00:02]}  Kf8 {[%clk 0:00:11]} 50. Nxg7 {[%clk 0:00:02]}  Ra2 {[%clk 0:00:11]} 51. Ne6+ {[%clk 0:00:02]}  Ke8 {[%clk 0:00:10]} 52. Kf3 {[%clk 0:00:03]}  Nxf2 {[%clk 0:00:07]} 53. Ng7+ {[%clk 0:00:03]}  Kf8 {[%clk 0:00:07]} 54. Nf5 {[%clk 0:00:04]}  e4+ {[%clk 0:00:05]} 55. Ke3 {[%clk 0:00:04]}  Ng4+ {[%clk 0:00:05]} 56. Kxe4 {[%clk 0:00:04]}  Ra4+ {[%clk 0:00:05]} 57. Kf3 {[%clk 0:00:04]}  Ne5+ {[%clk 0:00:05]} 58. Kg2 {[%clk 0:00:04]}  Ng4 {[%clk 0:00:05]} 59. Nd6 {[%clk 0:00:03]}  Kg8 {[%clk 0:00:05]} 60. Rb8+ {[%clk 0:00:01]}  Kg7 {[%clk 0:00:05]} 61. Nf5+ {[%clk 0:00:02]}  Kf7 {[%clk 0:00:06]} 62. Rb7+ {[%clk 0:00:02]}  Ke6 {[%clk 0:00:06]} 63. Ng7+ {[%clk 0:00:03]}  Ke5 {[%clk 0:00:07]} 64. Re7+ {[%clk 0:00:03]}  Kd4 {[%clk 0:00:06]} 65. Nf5+ {[%clk 0:00:04]}  Kd3 {[%clk 0:00:06]} 66. Kh3 {[%clk 0:00:03]}  Ne5 {[%clk 0:00:04]} 67. Nxh6 {[%clk 0:00:03]}  Ke4 {[%clk 0:00:04]} 68. Ng4 {[%clk 0:00:03]}  Ra1 {[%clk 0:00:03]} 69. Nxe5 {[%clk 0:00:02]}  fxe5 {[%clk 0:00:03]} 70. Kg4 {[%clk 0:00:03]}  Rh1 {[%clk 0:00:03]} 71. Kg5 {[%clk 0:00:03]}  Kf3 {[%clk 0:00:02]} 72. Rxe5 {[%clk 0:00:03]}  Kxg3 {[%clk 0:00:02]} 73. h6 {[%clk 0:00:03]}  Kf3 {[%clk 0:00:03]} 74. Kg6 {[%clk 0:00:04]}  Rg1+ {[%clk 0:00:03]} 75. Rg5 {[%clk 0:00:05]}  Kf4 {[%clk 0:00:04]} 76. h7 {[%clk 0:00:05]}  Rxg5+ {[%clk 0:00:04]} 77. Kh6 {[%clk 0:00:05]}  Rg1 {[%clk 0:00:04]} 78. h8=Q {[%clk 0:00:06]}  Rh1+ {[%clk 0:00:04]} 79. Kg7 {[%clk 0:00:06]}  Rxh8 {[%clk 0:00:05]} 80. Kxh8 {[%clk 0:00:07]} 1/2-1/2


[Site "https://www.chess.com"]

[Event "Titled Tuesday Blitz May 31 Early 2022"]
[White "Pichot, Alan"]
[Black "Gunina, Valentina"]
[WhiteFideId "110973"]
[BlackFideId "4167570"]
[WhiteElo "2579"]
[BlackElo "2381"]
[Result "0-1"]
[Round "06"]
[TimeControl "180+1"]
[Date "2022.05.31"]
[WhiteClock "0:00:28"]
[BlackClock "0:02:11"]

1. e4 {[%clk 0:03:00]}  c6 {[%clk 0:03:00]} 2. d4 {[%clk 0:03:00]}  d5 {[%clk 0:03:00]} 3. e5 {[%clk 0:03:01]}  c5 {[%clk 0:03:01]} 4. dxc5 {[%clk 0:02:59]}  e6 {[%clk 0:03:01]} 5. a3 {[%clk 0:02:55]}  Bxc5 {[%clk 0:03:01]} 6. Nf3 {[%clk 0:02:56]}  a6 {[%clk 0:02:58]} 7. Bd3 {[%clk 0:02:55]}  Ne7 {[%clk 0:02:58]} 8. O-O {[%clk 0:02:55]}  Nbc6 {[%clk 0:02:59]} 9. b4 {[%clk 0:02:55]}  Ba7 {[%clk 0:02:59]} 10. Bb2 {[%clk 0:02:55]}  Ng6 {[%clk 0:03:00]} 11. Re1 {[%clk 0:02:55]}  O-O {[%clk 0:02:59]} 12. c4 {[%clk 0:02:49]}  dxc4 {[%clk 0:02:58]} 13. Bxc4 {[%clk 0:02:48]}  Qb6 {[%clk 0:02:59]} 14. Qe2 {[%clk 0:02:18]}  Bd7 {[%clk 0:02:54]} 15. Nbd2 {[%clk 0:02:01]}  Rac8 {[%clk 0:02:49]} 16. g3 {[%clk 0:01:58]}  Rfd8 {[%clk 0:02:48]} 17. Ne4 {[%clk 0:01:53]}  Bb8 {[%clk 0:02:46]} 18. Nc5 {[%clk 0:01:50]}  Be8 {[%clk 0:02:45]} 19. h4 {[%clk 0:01:46]}  Nf8 {[%clk 0:02:41]} 20. Rac1 {[%clk 0:01:42]}  a5 {[%clk 0:02:41]} 21. Ne4 {[%clk 0:01:20]}  axb4 {[%clk 0:02:39]} 22. Nf6+ {[%clk 0:01:19]}  gxf6 {[%clk 0:02:38]} 23. exf6 {[%clk 0:01:19]}  bxa3 {[%clk 0:02:37]} 24. Bxa3 {[%clk 0:01:10]}  Bxg3 {[%clk 0:02:21]} 25. Rb1 {[%clk 0:01:03]}  Qa7 {[%clk 0:02:21]} 26. Bc1 {[%clk 0:00:36]}  Nd4 {[%clk 0:02:14]} 27. Nxd4 {[%clk 0:00:32]}  Qxd4 {[%clk 0:02:13]} 28. Ba2 {[%clk 0:00:28]}  Bxh4 {[%clk 0:02:11]} 0-1


[Site "https://www.chess.com"]

[Event "Titled Tuesday Blitz May 31 Early 2022"]
[White "Plazuelo Pascual, Juan"]
[Black "Petrovic, Aleksa"]
[WhiteFideId "32059566"]
[BlackFideId "967629"]
[WhiteElo "2359"]
[BlackElo "2144"]
[Result "0-1"]
[Round "06"]
[TimeControl "180+1"]
[Date "2022.06.01"]
[WhiteClock "0:00:10"]
[BlackClock "0:00:06"]

1. d4 {[%clk 0:03:00]}  Nf6 {[%clk 0:02:59]} 2. c4 {[%clk 0:03:01]}  e6 {[%clk 0:02:59]} 3. Nc3 {[%clk 0:03:01]}  Bb4 {[%clk 0:02:59]} 4. Bd2 {[%clk 0:03:00]}  O-O {[%clk 0:02:58]} 5. e3 {[%clk 0:03:00]}  d5 {[%clk 0:02:57]} 6. Nf3 {[%clk 0:03:00]}  b6 {[%clk 0:02:57]} 7. cxd5 {[%clk 0:03:00]}  exd5 {[%clk 0:02:56]} 8. Bd3 {[%clk 0:03:00]}  Bb7 {[%clk 0:02:56]} 9. Ne5 {[%clk 0:02:58]}  Be7 {[%clk 0:02:46]} 10. O-O {[%clk 0:02:46]}  c5 {[%clk 0:02:46]} 11. Rc1 {[%clk 0:02:46]}  Nc6 {[%clk 0:02:38]} 12. Nxc6 {[%clk 0:02:46]}  Bxc6 {[%clk 0:02:38]} 13. dxc5 {[%clk 0:02:47]}  bxc5 {[%clk 0:02:35]} 14. Qf3 {[%clk 0:02:37]}  Qb6 {[%clk 0:02:28]} 15. b3 {[%clk 0:02:30]}  Qb7 {[%clk 0:01:40]} 16. Qh3 {[%clk 0:02:20]}  g6 {[%clk 0:01:19]} 17. Ne2 {[%clk 0:02:18]}  Bb5 {[%clk 0:01:04]} 18. Bxb5 {[%clk 0:02:04]}  Qxb5 {[%clk 0:01:04]} 19. Nf4 {[%clk 0:02:04]}  Rfd8 {[%clk 0:00:52]} 20. Bc3 {[%clk 0:01:52]}  d4 {[%clk 0:00:42]} 21. Ba1 {[%clk 0:01:53]}  Bf8 {[%clk 0:00:35]} 22. exd4 {[%clk 0:01:45]}  cxd4 {[%clk 0:00:33]} 23. Qd3 {[%clk 0:01:45]}  Qe5 {[%clk 0:00:29]} 24. Ne2 {[%clk 0:01:42]}  Bd6 {[%clk 0:00:27]} 25. g3 {[%clk 0:01:39]}  Bc5 {[%clk 0:00:25]} 26. Rfd1 {[%clk 0:01:32]}  Rd5 {[%clk 0:00:14]} 27. Rxc5 {[%clk 0:01:29]}  Rxc5 {[%clk 0:00:13]} 28. Bxd4 {[%clk 0:01:30]}  Qd6 {[%clk 0:00:08]} 29. Bxc5 {[%clk 0:01:28]}  Qxc5 {[%clk 0:00:07]} 30. Qd6 {[%clk 0:01:10]}  Ne4 {[%clk 0:00:03]} 31. Qxc5 {[%clk 0:01:10]}  Nxc5 {[%clk 0:00:04]} 32. f3 {[%clk 0:01:04]}  Re8 {[%clk 0:00:03]} 33. Kf2 {[%clk 0:01:04]}  a5 {[%clk 0:00:03]} 34. Rd5 {[%clk 0:01:04]}  Rc8 {[%clk 0:00:03]} 35. Ke3 {[%clk 0:01:02]}  Na6 {[%clk 0:00:02]} 36. Rd2 {[%clk 0:00:59]}  Nb4 {[%clk 0:00:02]} 37. a3 {[%clk 0:00:58]}  Nc2+ {[%clk 0:00:02]} 38. Kf2 {[%clk 0:00:43]}  Nxa3 {[%clk 0:00:02]} 39. Ra2 {[%clk 0:00:43]}  Nc2 {[%clk 0:00:02]} 40. Rxa5 {[%clk 0:00:43]}  Nb4 {[%clk 0:00:02]} 41. Rb5 {[%clk 0:00:38]}  Nd3+ {[%clk 0:00:02]} 42. Ke3 {[%clk 0:00:39]}  Ne1 {[%clk 0:00:03]} 43. Rd5 {[%clk 0:00:30]}  Nc2+ {[%clk 0:00:03]} 44. Kf2 {[%clk 0:00:24]}  Nb4 {[%clk 0:00:03]} 45. Rd4 {[%clk 0:00:24]}  Rb8 {[%clk 0:00:03]} 46. Nc1 {[%clk 0:00:23]}  Nc6 {[%clk 0:00:02]} 47. Rc4 {[%clk 0:00:22]}  Na5 {[%clk 0:00:02]} 48. Rc3 {[%clk 0:00:22]}  Rb4 {[%clk 0:00:01]} 49. Ke3 {[%clk 0:00:22]}  Kg7 {[%clk 0:00:02]} 50. Kd2 {[%clk 0:00:22]}  Kf6 {[%clk 0:00:02]} 51. Kc2 {[%clk 0:00:23]}  Rd4 {[%clk 0:00:03]} 52. Nd3 {[%clk 0:00:22]}  Rd6 {[%clk 0:00:02]} 53. b4 {[%clk 0:00:15]}  Nc6 {[%clk 0:00:03]} 54. Kb3 {[%clk 0:00:14]}  Nd4+ {[%clk 0:00:03]} 55. Kc4 {[%clk 0:00:14]}  Nxf3 {[%clk 0:00:03]} 56. b5 {[%clk 0:00:13]}  Nd2+ {[%clk 0:00:03]} 57. Kc5 {[%clk 0:00:13]}  Ne4+ {[%clk 0:00:03]} 58. Kb4 {[%clk 0:00:11]}  Nxc3 {[%clk 0:00:04]} 59. Kxc3 {[%clk 0:00:12]}  Kf5 {[%clk 0:00:03]} 60. Kc4 {[%clk 0:00:12]}  Ke4 {[%clk 0:00:03]} 61. Nc5+ {[%clk 0:00:12]}  Kf3 {[%clk 0:00:03]} 62. Na4 {[%clk 0:00:10]}  Kg2 {[%clk 0:00:04]} 63. b6 {[%clk 0:00:10]}  Kxh2 {[%clk 0:00:04]} 64. Kc5 {[%clk 0:00:10]}  Rd8 {[%clk 0:00:04]} 65. g4 {[%clk 0:00:09]}  Kg3 {[%clk 0:00:04]} 66. b7 {[%clk 0:00:09]}  Kxg4 {[%clk 0:00:03]} 67. Nb6 {[%clk 0:00:10]}  Rb8 {[%clk 0:00:03]} 68. Kc6 {[%clk 0:00:10]}  h5 {[%clk 0:00:04]} 69. Nd7 {[%clk 0:00:11]}  Rxb7 {[%clk 0:00:04]} 70. Kxb7 {[%clk 0:00:12]}  h4 {[%clk 0:00:05]} 71. Ne5+ {[%clk 0:00:12]}  Kg3 {[%clk 0:00:05]} 72. Nxf7 {[%clk 0:00:11]}  h3 {[%clk 0:00:06]} 73. Ng5 {[%clk 0:00:10]}  h2 {[%clk 0:00:06]} 0-1


[Site "https://www.chess.com"]

[Event "Titled Tuesday Blitz May 31 Early 2022"]
[White "Sadhwani, Raunak"]
[Black "Yilmaz, Mustafa"]
[WhiteFideId "35093487"]
[BlackFideId "6302718"]
[WhiteElo "2616"]
[BlackElo "2568"]
[Result "1/2-1/2"]
[Round "06"]
[TimeControl "180+1"]
[Date "2022.05.31"]
[WhiteClock "0:00:16"]
[BlackClock "0:00:07"]

1. e4 {[%clk 0:03:00]}  c5 {[%clk 0:02:59]} 2. Nf3 {[%clk 0:03:01]}  d6 {[%clk 0:02:59]} 3. Bb5+ {[%clk 0:03:01]}  Nd7 {[%clk 0:02:59]} 4. Be2 {[%clk 0:03:02]}  Ngf6 {[%clk 0:02:57]} 5. Nc3 {[%clk 0:03:02]}  b6 {[%clk 0:02:58]} 6. d4 {[%clk 0:03:01]}  cxd4 {[%clk 0:02:59]} 7. Qxd4 {[%clk 0:03:02]}  e5 {[%clk 0:03:00]} 8. Qe3 {[%clk 0:03:02]}  Be7 {[%clk 0:02:54]} 9. O-O {[%clk 0:03:03]}  O-O {[%clk 0:02:54]} 10. Nd2 {[%clk 0:03:03]}  Nc5 {[%clk 0:02:53]} 11. b3 {[%clk 0:03:02]}  Bb7 {[%clk 0:02:39]} 12. Bb2 {[%clk 0:03:01]}  Rc8 {[%clk 0:02:18]} 13. Bc4 {[%clk 0:03:02]}  Kh8 {[%clk 0:02:01]} 14. Rfd1 {[%clk 0:02:53]}  a6 {[%clk 0:01:52]} 15. a4 {[%clk 0:02:52]}  Ng4 {[%clk 0:01:39]} 16. Qe2 {[%clk 0:02:49]}  Nh6 {[%clk 0:01:26]} 17. Bd5 {[%clk 0:02:36]}  Bxd5 {[%clk 0:01:23]} 18. Nxd5 {[%clk 0:02:37]}  f5 {[%clk 0:01:22]} 19. exf5 {[%clk 0:02:33]}  Nxf5 {[%clk 0:01:22]} 20. Nc4 {[%clk 0:02:34]}  b5 {[%clk 0:01:18]} 21. axb5 {[%clk 0:02:33]}  axb5 {[%clk 0:01:18]} 22. Nce3 {[%clk 0:02:26]}  Nxe3 {[%clk 0:01:17]} 23. Qxe3 {[%clk 0:02:27]}  Bh4 {[%clk 0:01:13]} 24. g3 {[%clk 0:02:27]}  Bg5 {[%clk 0:01:13]} 25. Qe2 {[%clk 0:02:28]}  Ne6 {[%clk 0:00:58]} 26. Ra7 {[%clk 0:02:18]}  Qe8 {[%clk 0:00:57]} 27. Qg4 {[%clk 0:01:40]}  Rxc2 {[%clk 0:00:52]} 28. f4 {[%clk 0:01:12]}  Rxb2 {[%clk 0:00:44]} 29. fxg5 {[%clk 0:01:12]}  Rff2 {[%clk 0:00:44]} 30. Ne3 {[%clk 0:01:09]}  Nd4 {[%clk 0:00:40]} 31. Rxd4 {[%clk 0:01:03]}  exd4 {[%clk 0:00:36]} 32. Qxd4 {[%clk 0:01:04]}  Qf8 {[%clk 0:00:29]} 33. Ra1 {[%clk 0:00:50]}  Rbd2 {[%clk 0:00:27]} 34. Qe4 {[%clk 0:00:44]}  Rfe2 {[%clk 0:00:19]} 35. Rf1 {[%clk 0:00:39]}  Qc8 {[%clk 0:00:16]} 36. Qf4 {[%clk 0:00:33]}  Qg8 {[%clk 0:00:14]} 37. h4 {[%clk 0:00:32]}  Rd3 {[%clk 0:00:13]} 38. Ng4 {[%clk 0:00:28]}  Qxb3 {[%clk 0:00:11]} 39. Qf8+ {[%clk 0:00:23]}  Qg8 {[%clk 0:00:12]} 40. Nh6 {[%clk 0:00:16]}  gxh6 {[%clk 0:00:05]} 41. Qf6+ {[%clk 0:00:15]}  Qg7 {[%clk 0:00:06]} 42. Qd8+ {[%clk 0:00:14]}  Qg8 {[%clk 0:00:06]} 43. Qf6+ {[%clk 0:00:15]}  Qg7 {[%clk 0:00:07]} 44. Qd8+ {[%clk 0:00:16]}  Qg8 {[%clk 0:00:07]} 45. Qf6+ {[%clk 0:00:16]} 1/2-1/2


[Site "https://www.chess.com"]